Cogmind - Beta 14 @@@ ROGUE MODE // 2024.09.17 @ 17:07:55 Player: FreshFromage Result: Destroyed by as-90927 with Assembled Heavy Rifle Performance ------------- Evolutions (0) 0 Regions Visited (2) 400 Robots Destroyed (10) 50 Value Destroyed (261) 261 Prototype IDs (2) 40 Alien Tech Used (0) 0 Bonus (60) 60 TOTAL SCORE: 811 Bonus ------- Follower Combat Kills 60 Cogmind --------- Core Integrity 0/250 Matter 289/300 Energy 250/250 System Corruption 0% Temperature Cool (52) Movement Core (300) Ox5 Location -10/Mines Parts ------- > --- POWER (1) -------- Ion Engine > --- PROPULSION (2) --- (None) > --- UTILITY (2) ------ Small Storage Unit > --- WEAPON (2) ------- Shotgun Shotgun > --- INVENTORY (8) ---- Light Nuclear Core Light Treads Light Treads Sensor Array Medium Armor Plating Medium Laser Field Laser Improved Grenade Launcher Peak State ------------ > --- POWER ------------ Ion Engine > --- PROPULSION ------- Compact Wheel Compact Wheel > --- UTILITY ---------- Small Storage Unit Medium Armor Plating > --- WEAPON ----------- Shotgun Shotgun > --- INVENTORY -------- Ion Engine Light Treads Aluminum Leg Disposable Heat Sink Medium Armor Plating Medium Laser Medium Laser Medium Laser [Rating: 11] Favorites ----------- Power Ion Engine Engine Ion Engine Propulsion Compact Wheel Wheel Compact Wheel Utility Small Storage Unit Device Disposable Heat Sink Storage Small Storage Unit Protection Medium Armor Plating Weapon Shotgun Energy Gun Medium Laser Ballistic Gun Shotgun Build | -11 -10 -10 ------- Run | Yrd Mat Min Slots Evolved . | . . . Power . | . . . Propulsion . | . . . Utility . | . . . Weapon . | . . . Parts Attached 13 | 6 6 1 Power 2 | 1 1 . Engine 2 | 1 1 . Core . | . . . Reactor . | . . . Propulsion 2 | 2 . . Treads . | . . . Leg . | . . . Wheel 2 | 2 . . Hover . | . . . Flight . | . . . Utility 3 | 1 2 . Device 1 | . 1 . Storage 1 | 1 . . Processor . | . . . Hackware . | . . . Protection 1 | . 1 . Artifact . | . . . Weapon 6 | 2 3 1 Energy Gun 3 | 2 1 . Energy Cannon . | . . . Ballistic Gun 3 | . 2 1 Ballistic Cannon . | . . . Launcher . | . . . Special Weapon . | . . . Impact Weapon . | . . . Slashing Weapon . | . . . Piercing Weapon . | . . . Special Melee Weapon . | . . . Unidentified Prototypes . | . . . Parts Lost 3 | . . 3 Power . | . . . Propulsion 2 | . . 2 Utility 1 | . . 1 Weapon . | . . . Highest Loss Streak 3 | . . 3 To Critical Strikes . | . . . Average Slot Usage (%) 99 | . 100 99 Engine 14 | . 14 14 Wheel 27 | . 28 27 Device 1 | . 4 . Storage 14 | . 14 14 Protection 12 | . 9 14 Energy Gun 3 | . 10 . Ballistic Gun 24 | . 17 28 Peak Build Rating 11 | 6 11 11 Average Rating 10 | 4 9 10 On Entrance 5 | . 6 11 Naked Turns . | . . . Heaviest Build 23 | 13 23 23 Greatest Support 32 | 32 32 32 Greatest Overweight (x) 7 | . . 7 Average Overweight (x) . | . . . Largest Inventory Capacity 8 | 8 8 8 Average Capacity 7 | 6 8 8 Most Carried 8 | 5 8 8 Average Carried 7 | 3 7 7 Final Capacity 8 | 8 8 8 Final Carried 8 | 5 8 8 Class Distribution -------------------- 100% | Mutant Dominant Class ---------------- Mutant | -10/Materials Mutant | -10/Mines Resources | -11 -10 -10 ----------- Run | Yrd Mat Min Matter Collected 456 | 238 170 48 Remotely . | . . . Salvage Created 332 | . 212 120 Parts 14 | . 9 5 Haulers Intercepted 1 | . 1 . Recyclers Shooed . | . . . Parts Field Recycled . | . . . Retrieved Matter . | . . . Parts Self-Destructed . | . . . Prevented . | . . . Kills | -11 -10 -10 ------- Run | Yrd Mat Min Combat Hostiles Destroyed 7 | . 4 3 Guns 7 | . 4 3 Classes Destroyed 4 | . 4 . Hauler 1 | . 1 . Watcher 2 | . 2 . Swarmer 1 | . 1 . Grunt 6 | . 3 3 Best Kill Streak 3 | . 3 2 Combat Bots Only 2 | . 1 2 Max Kills in Single Turn 1 | . 1 1 Gunslinging . | . . . Exploded . | . . . Melee . | . . . Uniques/NPCs Destroyed . | . . . Combat | -11 -10 -10 -------- Run | Yrd Mat Min Hostile Shots Fired 65 | . 16 49 Missed 19 | . 5 14 Damage Taken 709 | . 118 591 Core 253 | . 41 212 Absorbed by Shields . | . . . Core Remaining (%) 100 | 100 . . Volleys Fired 26 | . 18 8 Largest 2 | . 2 2 Hottest 100 | . 100 46 Shots Fired 52 | . 36 16 Gun 52 | . 36 16 Cannon . | . . . Launcher . | . . . Special . | . . . Kinetic 38 | . 22 16 Thermal 14 | . 14 . Explosive . | . . . Electromagnetic . | . . . Robot Hit Streak 7 | . 7 5 Robot Miss Streak 3 | . 3 3 Penetration Max . | . . . Secondary Targets . | . . . Shots Hit Robots 40 | . 27 13 Core Hits 21 | . 14 7 Critical Kills 1 | . . 1 Critical Parts Destroyed . | . . . Critical Strikes 2 | . 1 1 Burn 1 | . 1 . Destroy 1 | . . 1 Melee Attacks . | . . . Impact . | . . . Slashing . | . . . Piercing . | . . . Sneak Attacks . | . . . Combat Hostiles . | . . . Follow-up Attacks . | . . . Damage Inflicted 551 | . 342 209 Guns 551 | . 342 209 Cannons . | . . . Explosions . | . . . Melee . | . . . Ramming . | . . . Kinetic 412 | . 203 209 Thermal 139 | . 139 . Explosive . | . . . Electromagnetic . | . . . Impact . | . . . Slashing . | . . . Piercing . | . . . Highest Corruption . | . . . Average Corruption . | . . . Corruption Purged . | . . . Corruption Blocked . | . . . Overload Shots . | . . . Overflow Damage . | . . . Projectiles . | . . . Explosions . | . . . Melee . | . . . Knockbacks . | . . . Impact . | . . . Kinetic . | . . . Secondary . | . . . Self-Inflicted Damage . | . . . Shots . | . . . Rammed . | . . . Targets Rammed . | . . . Kicked . | . . . Crushed . | . . . Highest Temperature 180 | . 180 52 Average Temperature 52 | . 68 19 Received Heat Transfer 321 | . 54 267 Siege Activations . | . . . Robots Corrupted . | . . . Combat Hostiles . | . . . Parts Fried . | . . . Impact Corruptions . | . . . Robots Melted . | . . . Combat Hostiles . | . . . Parts Melted 2 | . 2 . Heat Transferred 481 | . 481 . Parts Sabotaged . | . . . Parts Stolen . | . . . Parts Stripped . | . . . Power Chain Reactions . | . . . Alert | -11 -10 -10 ------- Run | Yrd Mat Min Peak Influence 232 | . 217 232 Initial 84 | . . 84 Average 79 | . 68 89 Maximum Alert Level 1 | . 1 1 Low Security (%) 89 | 100 88 88 Level 1 10 | . 11 11 Level 2 . | . . . Level 3 . | . . . Level 4 . | . . . Level 5 . | . . . High Security . | . . . Max Security . | . . . Squads Dispatched 2 | . 1 1 Investigation . | . . . Extermination . | . . . Reinforcement 1 | . 1 . Assault 1 | . . 1 Garrison . | . . . Intercept . | . . . Searches Triggered . | . . . Construction Impeded . | . . . Haulers Reinforced . | . . . Active Scanning Responses . | . . . Cargo Convoy Interrupts . | . . . Stealth | -11 -10 -10 --------- Run | Yrd Mat Min Distress Signals . | . . . Communications Jammed . | . . . Distress Signals . | . . . Times Spotted 34 | . 11 23 Peak Tracking Total 18 | . 4 18 Tactical Retreats 3 | . 2 1 Traps | -11 -10 -10 ------- Run | Yrd Mat Min Traps Triggered . | . . . Indirectly . | . . . Trap Hack Attempts . | . . . Triggered . | . . . Disarmed . | . . . Reprogrammed . | . . . Reused . | . . . Traps Extracted . | . . . Installed . | . . . Triggered . | . . . Machines | -11 -10 -10 ---------- Run | Yrd Mat Min Machines Disabled . | . . . Max in Single Turn . | . . . Machines Repaired . | . . . Machines Dismantled . | . . . Machines Sabotaged . | . . . Overloaded Fab Kills . | . . . Hacking | -11 -10 -10 --------- Run | Yrd Mat Min Machines Accessed 5 | . 3 2 Terminals 3 | . 3 . Fabricators . | . . . Repair Stations . | . . . Recycling Units . | . . . Scanalyzers . | . . . Garrison Access . | . . . Total Hacks 10 | . 8 2 Successful 5 | . 3 2 Failed 5 | . 5 . Catastrophic 1 | . 1 . Database Lockouts . | . . . Manual 7 | . 7 . Terminals 8 | . 8 . Fabricators . | . . . Repair Stations . | . . . Recycling Units . | . . . Scanalyzers . | . . . Garrison Access . | . . . Terminal Hacks 4 | . 2 2 Prototype ID Bank 1 | . 1 . Open Door 2 | . . 2 Branch Access Points 1 | . 1 . Fabricator Hacks . | . . . Repair Station Hacks . | . . . Recycling Unit Hacks . | . . . Scanalyzer . | . . . Garrison Access Hacks . | . . . Unauthorized Hacks 1 | . 1 . Terminals 1 | . 1 . Botnet 1 | . 1 . Fabricators . | . . . Repair Stations . | . . . Recycling Units . | . . . Scanalyzers . | . . . Garrison Access . | . . . Data Cores Recovered . | . . . Used . | . . . Hacking Detections 3 | . 3 . Full Trace Events . | . . . Feedback Events . | . . . Feedback Blocked . | . . . Robot Schematics Acquired . | . . . Robots Built . | . . . Authchips . | . . . Time . | . . . Total Robot Build Rating . | . . . Part Schematics Acquired . | . . . Parts Built . | . . . Authchips . | . . . Time . | . . . Total Part Build Rating . | . . . Parts Repaired . | . . . Time . | . . . Parts Recycled . | . . . Recycled Matter . | . . . Retrieved Matter . | . . . Retrieved Components . | . . . Parts Scanalyzed . | . . . Part Schematics Acquired . | . . . Parts Damaged . | . . . Bothacking | -11 -10 -10 ------------ Run | Yrd Mat Min Used RIF Installer . | . . . Robots Hacked . | . . . Non-combat . | . . . Combat . | . . . Robot Hacks Applied . | . . . Relay Couplers Released . | . . . Fabnet Peak Effective % . | . . . Robots Rewired . | . . . Allies Hacked . | . . . Hacks Repelled . | . . . Allies | -11 -10 -10 -------- Run | Yrd Mat Min Total Allies 3 | . . 3 Largest Group 2 | . . 2 Highest-Rated Group 42 | . . 42 Highest-Rated Ally 31 | . . 31 Total Orders . | . . . Ally Attacks 19 | . . 19 Total Damage 339 | . . 339 Kills 3 | . . 3 Allies Corrupted 1 | . . 1 Allies Melted . | . . . Intel | -11 -10 -10 ------- Run | Yrd Mat Min Robot Analysis Total . | . . . Derelict Logs Recovered 1 | . . 1 Drone Launches . | . . . Drone Recoveries . | . . . Exploration | -11 -10 -10 ------------- Run | Yrd Mat Min Turns Passed 1226 | 53 344 829 Spaces Moved 885 | 40 238 607 Core 3 | 1 . 2 Treads . | . . . Legs . | . . . Wheels 882 | 39 238 605 Hover . | . . . Flight . | . . . Fastest Speed 50 | 50 100 100 Average Speed 100 | 98 100 100 Slowest Speed 400 | 100 100 400 Overloaded Moves . | . . . Propulsion Burnouts . | . . . Robots Hopped . | . . . Cave-ins Triggered . | . . . Exploration Rate (%) 42 | 3 41 84 Regions Visited 2 Branch Regions 1 Pre-discovered Areas 1 | . . 1 Known Exits Taken 1 | . 1 . Unknown Exits Taken 1 | 1 . . Scrap Searched 1 | . . 1 Spaces Dug . | . . . Terrain Destroyed . | . . . Melee . | . . . Projectile . | . . . AOE . | . . . Terrain Rammed . | . . . Walls Destroyed . | . . . Machines Disabled . | . . . Actions | -11 -10 -10 --------- Run | Yrd Mat Min Total 1167 | 50 308 809 Wait 217 | . 30 187 Move 883 | 39 237 607 Hop . | . . . Pick Up 18 | 5 10 3 Fast Attach 8 | 6 1 1 Attach . | . . . Detach . | . . . Swap 5 | . 5 . Drop 10 | . 7 3 Fire 26 | . 18 8 Melee . | . . . Ram . | . . . Kick . | . . . Crush . | . . . Escape Stasis . | . . . Rewire . | . . . Trap . | . . . Miscellaneous . | . . . Route ------- -11/Scrapyard -10/Materials (discovered 2 exits: *Min x2) -10/Mines (discovered 3 exits: [*Mat x2] / [*Sub]) History --------- Turn | Location | Event 34 | -11/Scrapyard | Discovered new exit (range 16) 54 | -11/Scrapyard | Entered Materials 303 | -10/Materials | Build established: Mutant 352 | -10/Materials | Discovered new exit (range 7) 352 | -10/Materials | Discovered new exit (range 11) 380 | -10/Materials | Identified exit to Mines 398 | -10/Materials | Entered Mines 409 | -10/Mines | Learned location of Storage (-7) 413 | -10/Mines | Discovered new exit (range 5) 466 | -10/Mines | Met a Derelict who couldn't figure out how to use a Trap Extractor 490 | -10/Mines | Met a Derelict testing a Signal Generator 811 | -10/Mines | Discovered new exit (range 5) 879 | -10/Mines | Discovered new exit (range 13) 894 | -10/Mines | Found the Drone Emporium 1188 | -10/Mines | Assembled infested the area 1224 | -10/Mines | Core integrity fell below 50% 1226 | -10/Mines | Core integrity fell below 20% 1227 | -10/Mines | Destroyed by as-90927 with Assembled Heavy Rifle Last Messages --------------- 01190_ Searching scrap... 01190_ Found 70 Matter. 01190_ Found Power Shielding. 01190_ Found Wheel. 01190_ Found 65 Matter. 01191_ Acquired 8 matter. 01209_ Shotgun severed. 01209_ Acquired Shotgun. 01212_ 1K-AOQ(g) shuts down. 01214_ as-16181 sneak attacks. 01214_ 1K-AOQ(g) system corrupted by crushing effect. 01214_ 20-EGR(z) destroyed. 01215_ 1K-AOQ(g) system terminally corrupted. 01216_ Com. Wheel destroyed. 01222_ Med. Armor Plating destroyed. 01222_ as-15828 destroyed. 01223_ Knocked back. 01225_ as-16181 suffers critical hit (Destroy). [Achievement: Back For More] Map ----- +----------------------------------------------------+ | ?????####???????????# #????## ##????????????? | | ??????????????????### #?????# ##?????????????? | | ?????????????###### ##????## ##??????????????? | | ????????????## #?????#####???????????????? | | ???????????## #?????????????????????????? | | ??????????## #?????????????????????????? | | ?####????## #######???????????????????? | | ?# ????# ??????????????????? | | ?# #???## ######????????????????????? | | ?# #??## #?????????????????????????? | | ?# #?## ##### #?????????????????????????? | | ?# ### ###???## #?????????????????????????? | | ?# # ##??????# #?????####????????????????? | | ?# #??????## ##??## #????????????????? | | ?# #??????# #### #??#?????????????? | | ?# #?????## #? #?????????????? | | ?# #???### ## ##????????????? | | ## ##?## ???????????? | | # ### % ???????????? | | # ### * #####????????????? | | ## ## #?### *% %######????????????? | | ?# #### #???## aa a ### ?????????????? | | ?# #?## ##???### aaa#?# #?????????????? | | ?# ## ##????## ### #?????????????? | | ?## #?????## a ##=!#?????????????? | | ??## ## #????## @aaaa # %#####?????????? | | ???## #?## #????# aa a % #?????????? | | ????####???## ##????# a a a #????????? | | ????????????####?????# ## #????????? | | ?????????????????????######## ###### ##????????? | | ????????????????????????????####?????###?????????? | | ?????????????????????????????????????????????????? | | ?????????????????????????????????????????????????? | | ?????????????????????????????????????????????????? | | | | | | | | | | | | | | | | | | | | | | | | | | | | | | | | | +----------------------------------------------------+ Best States ------------- Heat Dissipation 25 Coolant Potential 50 Energy Generation 10 Energy Capacity 250 Matter Stores 300 Matter Capacity 300 Sight Range 16 Terrain Scan Density 10 Armor Coverage 225 Evasion (%) 40 Item Schematics ----------------- None Robot Schematics ------------------ None Fabricated ------------ Nothing Alien Tech Used ----------------- None Achievements -------------- Back For More Challenges ------------ None Game ------ Seed MagneticArmoredLaser Manual? 0 Play Time 00:14:23 Cumulative 107.9 hours Start 2024.09.17 @ 16:55:20 End 2024.09.17 @ 17:07:55 Sessions 1 Manual Loads 0 Difficulty Rogue Special Mode None Game No. 50 Rogue 50 Adventurer 0 Explorer 0 Win Type - Total 3 Types 2/0/0/1/0/0/0/0/0 Lore% 46 Gallery% 49 Achievement% 46 Wizard Run 0 Options --------- Layout 1 ASCII 0 Keyboard 0 Movement Vi Keybinds 0 Fullscreen 1 Font 24/Smallcaps Map View 50x35 Zoom Use 0% Tactical HUD 1 Map Filters NONE Filters NONE Steam 1 RUN: cf77754e-cb5d-4dc7-9aab-8b877224a2da